[Event "Early-Titled-Tuesday-Blitz-February-06-2024"]
[Site "Chess.com"]
[Date "2024.02.06"]
[Round "8"]
[White "Genghis_K"]
[Black "dropstoneDP"]
[Result "0-1"]
[WhiteElo "2907"]
[BlackElo "3030"]
[TimeControl "180+1"]
[EndTime "9:28:18 PST"]
[Termination "dropstoneDP won on time"]

1. e4 {[%clk 0:02:55]} 1... e5 {[%clk 0:03:00.3]} 2. Nf3 {[%clk 0:02:54.5]} 2...
Nf6 {[%clk 0:03:01]} 3. d4 {[%clk 0:02:50.8]} 3... Nxe4 {[%clk 0:03:00.8]} 4.
Bd3 {[%clk 0:02:50.9]} 4... d5 {[%clk 0:03:01.1]} 5. Nxe5 {[%clk 0:02:51.6]}
5... Nd7 {[%clk 0:03:01.4]} 6. Nc3 {[%clk 0:02:52.3]} 6... Bb4 {[%clk
0:03:00.6]} 7. O-O {[%clk 0:02:52.2]} 7... Nxe5 {[%clk 0:03:01.3]} 8. dxe5
{[%clk 0:02:52.9]} 8... Nxc3 {[%clk 0:03:01.8]} 9. bxc3 {[%clk 0:02:53.5]} 9...
Bxc3 {[%clk 0:03:02.7]} 10. Rb1 {[%clk 0:02:54.1]} 10... O-O {[%clk 0:03:02.7]}
11. Bxh7+ {[%clk 0:02:54.6]} 11... Kxh7 {[%clk 0:03:03.6]} 12. Qd3+ {[%clk
0:02:55.1]} 12... Kg8 {[%clk 0:03:04.3]} 13. Qxc3 {[%clk 0:02:55.7]} 13... a5
{[%clk 0:03:04.9]} 14. f4 {[%clk 0:02:56.4]} 14... d4 {[%clk 0:03:02.1]} 15. Qd3
{[%clk 0:02:56.4]} 15... Re8 {[%clk 0:03:00.1]} 16. Bd2 {[%clk 0:02:55.9]} 16...
Ra6 {[%clk 0:02:58.3]} 17. Rbe1 {[%clk 0:02:55.1]} 17... Qd5 {[%clk 0:02:57.3]}
18. f5 {[%clk 0:02:28.3]} 18... f6 {[%clk 0:01:18.1]} 19. e6 {[%clk 0:02:11.3]}
19... Bxe6 {[%clk 0:01:16.2]} 20. fxe6 {[%clk 0:02:07.5]} 20... Raxe6 {[%clk
0:01:17.1]} 21. Rxe6 {[%clk 0:02:05.6]} 21... Rxe6 {[%clk 0:01:18]} 22. c4
{[%clk 0:01:53.3]} 22... Qd7 {[%clk 0:01:09.6]} 23. Qf5 {[%clk 0:01:46.3]} 23...
b6 {[%clk 0:01:08.2]} 24. h4 {[%clk 0:01:41.2]} 24... Qc6 {[%clk 0:01:07.4]} 25.
h5 {[%clk 0:01:35.9]} 25... Re2 {[%clk 0:01:06.7]} 26. Qg4 {[%clk 0:00:45]}
26... Rxd2 {[%clk 0:00:50.3]} 27. h6 {[%clk 0:00:45.4]} 27... g5 {[%clk
0:00:50.6]} 28. Re1 {[%clk 0:00:46.1]} 28... d3 {[%clk 0:00:07.7]} 29. h7+
{[%clk 0:00:19.5]} 29... Kh8 {[%clk 0:00:05.7]} 30. Re7 {[%clk 0:00:03.8]} 30...
Qc5+ {[%clk 0:00:05.4]} 0-1

[Event "Early-Titled-Tuesday-Blitz-February-06-2024"]
[Site "Chess.com"]
[Date "2024.02.06"]
[Round "8"]
[White "snowlord"]
[Black "Yurovskykh_Oleksandr"]
[Result "1-0"]
[WhiteElo "2862"]
[BlackElo "2647"]
[TimeControl "180+1"]
[EndTime "9:28:19 PST"]
[Termination "snowlord won by resignation"]

1. e4 {[%clk 0:02:49]} 1... e6 {[%clk 0:02:43.6]} 2. d4 {[%clk 0:02:46.8]} 2...
d5 {[%clk 0:02:44.1]} 3. Nc3 {[%clk 0:02:46]} 3... dxe4 {[%clk 0:02:44.1]} 4.
Nxe4 {[%clk 0:02:45.7]} 4... Bd7 {[%clk 0:02:44.7]} 5. Nf3 {[%clk 0:02:45.8]}
5... Bc6 {[%clk 0:02:44.9]} 6. Ng3 {[%clk 0:02:46.1]} 6... Nd7 {[%clk
0:02:45.3]} 7. Bd3 {[%clk 0:02:40.7]} 7... Ngf6 {[%clk 0:02:45.3]} 8. O-O {[%clk
0:02:41]} 8... g6 {[%clk 0:02:45.1]} 9. Re1 {[%clk 0:02:40.2]} 9... Bg7 {[%clk
0:02:45.4]} 10. h4 {[%clk 0:02:40.7]} 10... O-O {[%clk 0:02:39]} 11. h5 {[%clk
0:02:41.2]} 11... b6 {[%clk 0:02:32.8]} 12. Bg5 {[%clk 0:02:27.3]} 12... Bb7
{[%clk 0:02:17.1]} 13. h6 {[%clk 0:02:25.9]} 13... Bh8 {[%clk 0:02:17.1]} 14.
Qe2 {[%clk 0:02:21.9]} 14... c5 {[%clk 0:02:13.6]} 15. Rad1 {[%clk 0:02:22.6]}
15... cxd4 {[%clk 0:02:11.5]} 16. Bc4 {[%clk 0:02:03.5]} 16... Re8 {[%clk
0:01:56.3]} 17. Rxd4 {[%clk 0:02:01.4]} 17... Qc7 {[%clk 0:01:56.3]} 18. Bb5
{[%clk 0:01:55.1]} 18... a6 {[%clk 0:01:50.2]} 19. Bxf6 {[%clk 0:01:40.1]} 19...
Nxf6 {[%clk 0:01:51.1]} 20. Bxe8 {[%clk 0:01:39.1]} 20... Rxe8 {[%clk 0:01:50]}
21. c4 {[%clk 0:01:30.7]} 21... Nd7 {[%clk 0:01:42]} 22. Rd2 {[%clk 0:01:31]}
22... Nc5 {[%clk 0:01:41.7]} 23. Red1 {[%clk 0:01:26.3]} 23... Bf6 {[%clk
0:01:33.6]} 24. b4 {[%clk 0:01:08.3]} 24... Na4 {[%clk 0:01:33.6]} 25. Rd7
{[%clk 0:01:08.9]} 25... Qc6 {[%clk 0:01:26.5]} 26. b5 {[%clk 0:01:04.1]} 26...
axb5 {[%clk 0:01:18.1]} 27. cxb5 {[%clk 0:01:05]} 27... Qc8 {[%clk 0:01:18.6]}
28. Ne4 {[%clk 0:00:43.2]} 28... Bxe4 {[%clk 0:01:07.4]} 29. Qxe4 {[%clk
0:00:44.1]} 29... Nc5 {[%clk 0:01:07.8]} 30. Qc6 {[%clk 0:00:37.5]} 30... Qxc6
{[%clk 0:00:41.6]} 31. bxc6 {[%clk 0:00:36.9]} 31... Nxd7 {[%clk 0:00:42.2]} 32.
Rxd7 {[%clk 0:00:36.6]} 32... Rc8 {[%clk 0:00:39]} 33. Rb7 {[%clk 0:00:36.9]}
33... Kf8 {[%clk 0:00:35.9]} 34. Rxb6 {[%clk 0:00:36.7]} 34... e5 {[%clk
0:00:19.7]} 35. Nd2 {[%clk 0:00:32.5]} 35... Bg5 {[%clk 0:00:15.2]} 36. Nc4
{[%clk 0:00:31]} 36... Bxh6 {[%clk 0:00:12.4]} 37. Nd6 {[%clk 0:00:27.6]} 37...
Rc7 {[%clk 0:00:12.9]} 38. Nb5 {[%clk 0:00:24.2]} 38... Rc8 {[%clk 0:00:12.1]}
39. Na7 {[%clk 0:00:22.4]} 39... Rc7 {[%clk 0:00:12.4]} 40. Rb7 {[%clk
0:00:22.9]} 40... Re7 {[%clk 0:00:05.5]} 41. Rxe7 {[%clk 0:00:22.2]} 41... Kxe7
{[%clk 0:00:06.4]} 42. c7 {[%clk 0:00:23.1]} 1-0

[Event "Early-Titled-Tuesday-Blitz-February-06-2024"]
[Site "Chess.com"]
[Date "2024.02.06"]
[Round "8"]
[White "picturesquecheck"]
[Black "OneTrickPony_82"]
[Result "0-1"]
[WhiteElo "2386"]
[BlackElo "2541"]
[TimeControl "180+1"]
[EndTime "9:28:20 PST"]
[Termination "OneTrickPony_82 won on time"]

1. Nf3 {[%clk 0:02:34.7]} 1... Nf6 {[%clk 0:02:59.5]} 2. d4 {[%clk 0:02:32.2]}
2... d5 {[%clk 0:02:59.2]} 3. g3 {[%clk 0:02:27.9]} 3... Bf5 {[%clk 0:02:58.2]}
4. Bg2 {[%clk 0:02:26.9]} 4... h6 {[%clk 0:02:58.7]} 5. O-O {[%clk 0:02:26.4]}
5... e6 {[%clk 0:02:59]} 6. c4 {[%clk 0:02:25.2]} 6... c6 {[%clk 0:02:57.8]} 7.
Ne5 {[%clk 0:02:23.9]} 7... Be7 {[%clk 0:02:56.1]} 8. Nc3 {[%clk 0:02:23.9]}
8... O-O {[%clk 0:02:55.4]} 9. Re1 {[%clk 0:02:22.9]} 9... Nbd7 {[%clk
0:02:49.7]} 10. b3 {[%clk 0:02:19.6]} 10... a5 {[%clk 0:02:40.9]} 11. Bb2 {[%clk
0:02:15.1]} 11... Qb8 {[%clk 0:02:36.4]} 12. Nxd7 {[%clk 0:02:10.8]} 12... Nxd7
{[%clk 0:02:36.5]} 13. e4 {[%clk 0:02:10.4]} 13... dxe4 {[%clk 0:02:36.8]} 14.
Nxe4 {[%clk 0:02:06.1]} 14... Rd8 {[%clk 0:02:34.5]} 15. Qd2 {[%clk 0:01:56.7]}
15... Nf6 {[%clk 0:02:17.3]} 16. Rad1 {[%clk 0:01:52.2]} 16... a4 {[%clk
0:02:14.8]} 17. Ba1 {[%clk 0:01:33.4]} 17... axb3 {[%clk 0:02:13.8]} 18. axb3
{[%clk 0:01:34.3]} 18... Nxe4 {[%clk 0:02:11.9]} 19. Bxe4 {[%clk 0:01:33.5]}
19... Bxe4 {[%clk 0:02:10.9]} 20. Rxe4 {[%clk 0:01:33.3]} 20... Bf6 {[%clk
0:02:08.6]} 21. Bc3 {[%clk 0:01:27.7]} 21... Ra3 {[%clk 0:02:04.1]} 22. Qb2
{[%clk 0:01:20.6]} 22... Qa7 {[%clk 0:02:02.2]} 23. Rd2 {[%clk 0:00:52.3]} 23...
b5 {[%clk 0:01:50]} 24. Kg2 {[%clk 0:00:42.2]} 24... h5 {[%clk 0:01:40]} 25. Bb4
{[%clk 0:00:40.9]} 25... Ra1 {[%clk 0:01:37.7]} 26. Bc5 {[%clk 0:00:35.1]} 26...
Qa8 {[%clk 0:01:32.5]} 27. Qc2 {[%clk 0:00:24.4]} 27... bxc4 {[%clk 0:01:31.2]}
28. bxc4 {[%clk 0:00:24.4]} 28... Qa4 {[%clk 0:01:30.2]} 29. Qd3 {[%clk
0:00:21.6]} 29... h4 {[%clk 0:01:23.2]} 30. Rde2 {[%clk 0:00:19.3]} 30... Rd1
{[%clk 0:01:17]} 31. Rd2 {[%clk 0:00:19.5]} 31... Rc1 {[%clk 0:01:07.2]} 32.
gxh4 {[%clk 0:00:18.1]} 32... Qa1 {[%clk 0:01:03.6]} 33. h5 {[%clk 0:00:10.7]}
33... Rg1+ {[%clk 0:01:03.2]} 34. Kh3 {[%clk 0:00:10.5]} 34... Qa6 {[%clk
0:00:43.6]} 35. Rg4 {[%clk 0:00:09.8]} 35... Rxg4 {[%clk 0:00:39.9]} 36. Kxg4
{[%clk 0:00:10.7]} 36... e5 {[%clk 0:00:39.5]} 37. Qf5 {[%clk 0:00:05.7]} 37...
Qxc4 {[%clk 0:00:35]} 38. h6 {[%clk 0:00:06.1]} 38... exd4 {[%clk 0:00:30.2]}
39. hxg7 {[%clk 0:00:04.6]} 39... Bxg7 {[%clk 0:00:26.7]} 40. f4 {[%clk
0:00:04.9]} 40... Qd5 {[%clk 0:00:23.9]} 0-1

[Event "Early-Titled-Tuesday-Blitz-February-06-2024"]
[Site "Chess.com"]
[Date "2024.02.06"]
[Round "8"]
[White "starworld123"]
[Black "NMJeevanK"]
[Result "1-0"]
[WhiteElo "2836"]
[BlackElo "2609"]
[TimeControl "180+1"]
[EndTime "9:28:21 PST"]
[Termination "starworld123 won by resignation"]

1. Nf3 {[%clk 0:02:53.3]} 1... d5 {[%clk 0:02:58.4]} 2. e3 {[%clk 0:02:52.1]}
2... Nf6 {[%clk 0:02:58.6]} 3. b3 {[%clk 0:02:52.3]} 3... e6 {[%clk 0:02:57.9]}
4. Bb2 {[%clk 0:02:52.6]} 4... Be7 {[%clk 0:02:58.7]} 5. d4 {[%clk 0:02:52.2]}
5... O-O {[%clk 0:02:59.2]} 6. Bd3 {[%clk 0:02:52.5]} 6... Nbd7 {[%clk
0:02:59.2]} 7. Nbd2 {[%clk 0:02:51.8]} 7... c5 {[%clk 0:02:59.4]} 8. O-O {[%clk
0:02:52]} 8... cxd4 {[%clk 0:02:57.1]} 9. exd4 {[%clk 0:02:52.9]} 9... Bd6
{[%clk 0:02:54.3]} 10. Ne5 {[%clk 0:02:51.7]} 10... Qc7 {[%clk 0:02:49.5]} 11.
f4 {[%clk 0:02:49.7]} 11... a5 {[%clk 0:02:41]} 12. a4 {[%clk 0:02:42.7]} 12...
b6 {[%clk 0:02:40.8]} 13. Qe2 {[%clk 0:02:38.2]} 13... Bb7 {[%clk 0:02:39.3]}
14. c3 {[%clk 0:02:30.8]} 14... Rac8 {[%clk 0:02:30.1]} 15. Rae1 {[%clk
0:02:27.8]} 15... Qd8 {[%clk 0:02:24]} 16. g4 {[%clk 0:02:24.9]} 16... Bxe5
{[%clk 0:02:15.6]} 17. fxe5 {[%clk 0:02:24.2]} 17... Ne4 {[%clk 0:02:14.1]} 18.
Nxe4 {[%clk 0:02:24.6]} 18... dxe4 {[%clk 0:02:15]} 19. Bxe4 {[%clk 0:02:25.5]}
19... Bxe4 {[%clk 0:02:15.2]} 20. Qxe4 {[%clk 0:02:26.4]} 20... Qg5 {[%clk
0:02:11.6]} 21. Qf4 {[%clk 0:02:23.2]} 21... Qg6 {[%clk 0:02:10.2]} 22. h4
{[%clk 0:02:23.7]} 22... Qc2 {[%clk 0:02:07.2]} 23. Ba3 {[%clk 0:02:19.1]} 23...
Qxb3 {[%clk 0:01:58.2]} 24. Bxf8 {[%clk 0:02:18.6]} 24... Rxf8 {[%clk
0:01:59.1]} 25. Re3 {[%clk 0:02:08.1]} 25... Qxa4 {[%clk 0:01:57.8]} 26. h5
{[%clk 0:02:08.1]} 26... Qb3 {[%clk 0:01:49.2]} 27. h6 {[%clk 0:02:04.5]} 27...
g6 {[%clk 0:01:49.1]} 28. Qe4 {[%clk 0:01:59]} 28... a4 {[%clk 0:01:32.8]} 29.
Qc6 {[%clk 0:01:36.9]} 29... Qd5 {[%clk 0:01:21.5]} 30. Qxa4 {[%clk 0:01:32.3]}
30... b5 {[%clk 0:01:07.9]} 31. Qb4 {[%clk 0:01:16.9]} 31... Ra8 {[%clk
0:00:52.3]} 32. Qe7 {[%clk 0:01:06.7]} 32... Rf8 {[%clk 0:00:48.6]} 33. Ref3
{[%clk 0:00:43.2]} 33... Qe4 {[%clk 0:00:48.5]} 34. Rxf7 {[%clk 0:00:29.7]}
34... Qxg4+ {[%clk 0:00:46.5]} 35. Kh2 {[%clk 0:00:30.4]} 35... Qe2+ {[%clk
0:00:39.2]} 36. R1f2 {[%clk 0:00:28.9]} 36... Qxf2+ {[%clk 0:00:18.5]} 37. Rxf2
{[%clk 0:00:29.8]} 37... Rxf2+ {[%clk 0:00:18.4]} 38. Kg3 {[%clk 0:00:30.5]}
38... Rf7 {[%clk 0:00:19]} 39. Qxe6 {[%clk 0:00:31.1]} 39... Nf8 {[%clk
0:00:19.4]} 40. Qd5 {[%clk 0:00:29.5]} 40... b4 {[%clk 0:00:18.6]} 41. cxb4
{[%clk 0:00:29.4]} 41... g5 {[%clk 0:00:19.2]} 42. e6 {[%clk 0:00:25.3]} 42...
Rf6 {[%clk 0:00:18.2]} 43. e7+ {[%clk 0:00:24.4]} 43... Kh8 {[%clk 0:00:18.8]}
44. Qe5 {[%clk 0:00:19.8]} 1-0

[Event "Early-Titled-Tuesday-Blitz-February-06-2024"]
[Site "Chess.com"]
[Date "2024.02.06"]
[Round "8"]
[White "chess123456s"]
[Black "cthulhuuu"]
[Result "1-0"]
[WhiteElo "2545"]
[BlackElo "2405"]
[TimeControl "180+1"]
[EndTime "9:28:21 PST"]
[Termination "chess123456s won on time"]

1. d4 {[%clk 0:03:00.9]} 1... Nf6 {[%clk 0:02:59.9]} 2. Nc3 {[%clk 0:03:01.4]}
2... d5 {[%clk 0:02:59.8]} 3. Bf4 {[%clk 0:03:02]} 3... e6 {[%clk 0:02:59.6]} 4.
Nb5 {[%clk 0:03:01.8]} 4... Na6 {[%clk 0:02:56.2]} 5. e3 {[%clk 0:03:01.7]} 5...
Be7 {[%clk 0:02:53]} 6. Nf3 {[%clk 0:03:01.6]} 6... O-O {[%clk 0:02:53.1]} 7. h4
{[%clk 0:03:02.2]} 7... c5 {[%clk 0:02:44.2]} 8. c3 {[%clk 0:02:59.7]} 8... Bd7
{[%clk 0:02:42.3]} 9. a4 {[%clk 0:02:59]} 9... c4 {[%clk 0:02:08.3]} 10. Ne5
{[%clk 0:02:55.8]} 10... Bxb5 {[%clk 0:02:05.4]} 11. axb5 {[%clk 0:02:53.9]}
11... Nc7 {[%clk 0:02:05.6]} 12. h5 {[%clk 0:02:41.6]} 12... Nxb5 {[%clk
0:01:58.1]} 13. Qc2 {[%clk 0:02:28.3]} 13... Nd6 {[%clk 0:01:51.7]} 14. f3
{[%clk 0:02:19.4]} 14... Nd7 {[%clk 0:01:45]} 15. Nxd7 {[%clk 0:02:11]} 15...
Qxd7 {[%clk 0:01:45.9]} 16. e4 {[%clk 0:01:59.9]} 16... dxe4 {[%clk 0:01:21.2]}
17. fxe4 {[%clk 0:01:58.3]} 17... Qc6 {[%clk 0:01:21.6]} 18. e5 {[%clk
0:01:51.7]} 18... Nf5 {[%clk 0:01:20.5]} 19. Kf2 {[%clk 0:01:38.9]} 19... Bh4+
{[%clk 0:01:11.6]} 20. Kg1 {[%clk 0:01:31.5]} 20... Bg3 {[%clk 0:01:09.9]} 21.
Bxg3 {[%clk 0:01:30.6]} 21... Nxg3 {[%clk 0:01:09.9]} 22. Rh3 {[%clk 0:01:31.3]}
22... Nf5 {[%clk 0:00:36.6]} 23. Be2 {[%clk 0:01:24.9]} 23... f6 {[%clk
0:00:29.4]} 24. exf6 {[%clk 0:01:21.1]} 24... Rxf6 {[%clk 0:00:29.1]} 25. Rf1
{[%clk 0:01:19.8]} 25... Raf8 {[%clk 0:00:28.6]} 26. Bf3 {[%clk 0:01:01.1]}
26... Ne3 {[%clk 0:00:28.8]} 27. Qc1 {[%clk 0:00:50.7]} 27... Qe4 {[%clk
0:00:03.7]} 28. Re1 {[%clk 0:00:25.2]} 28... Rxf3 {[%clk 0:00:03.8]} 29. Rxf3
{[%clk 0:00:22.6]} 29... Rxf3 {[%clk 0:00:02.5]} 30. gxf3 {[%clk 0:00:20.3]}
30... Qxf3 {[%clk 0:00:02.8]} 31. Qxe3 {[%clk 0:00:19.9]} 31... Qg4+ {[%clk
0:00:03.3]} 32. Kf2 {[%clk 0:00:20.4]} 32... Qh4+ {[%clk 0:00:02.3]} 33. Qg3
{[%clk 0:00:20.5]} 33... Qf6+ {[%clk 0:00:02]} 34. Kg2 {[%clk 0:00:20.9]} 1-0

[Event "Early-Titled-Tuesday-Blitz-February-06-2024"]
[Site "Chess.com"]
[Date "2024.02.06"]
[Round "8"]
[White "IriBu"]
[Black "GMCorinnaKopff"]
[Result "1-0"]
[WhiteElo "2543"]
[BlackElo "2371"]
[TimeControl "180+1"]
[EndTime "9:28:23 PST"]
[Termination "IriBu won by resignation"]

1. d4 {[%clk 0:02:56]} 1... Nf6 {[%clk 0:02:54.5]} 2. Nf3 {[%clk 0:02:54.5]}
2... g6 {[%clk 0:02:54.4]} 3. g3 {[%clk 0:02:53.3]} 3... Bg7 {[%clk 0:02:54.8]}
4. Bg2 {[%clk 0:02:53.8]} 4... O-O {[%clk 0:02:54.6]} 5. O-O {[%clk 0:02:54.4]}
5... d6 {[%clk 0:02:55]} 6. Nbd2 {[%clk 0:02:52.5]} 6... Nbd7 {[%clk 0:02:39.1]}
7. e4 {[%clk 0:02:51.8]} 7... e5 {[%clk 0:02:39.3]} 8. c3 {[%clk 0:02:51.5]}
8... Re8 {[%clk 0:02:38.3]} 9. Re1 {[%clk 0:02:51.8]} 9... Qe7 {[%clk
0:02:36.6]} 10. a4 {[%clk 0:02:50.9]} 10... c6 {[%clk 0:02:34.9]} 11. b3 {[%clk
0:02:46.6]} 11... c5 {[%clk 0:02:06.2]} 12. dxc5 {[%clk 0:02:41.8]} 12... dxc5
{[%clk 0:02:07.1]} 13. Nc4 {[%clk 0:02:39.7]} 13... Rd8 {[%clk 0:01:56.5]} 14.
Qc2 {[%clk 0:02:27.9]} 14... b6 {[%clk 0:01:35.5]} 15. Bg5 {[%clk 0:02:20.7]}
15... h6 {[%clk 0:01:34.4]} 16. Be3 {[%clk 0:02:17.2]} 16... Bb7 {[%clk
0:01:34]} 17. Nfd2 {[%clk 0:02:17.5]} 17... Nf8 {[%clk 0:01:28.6]} 18. h3 {[%clk
0:02:13.5]} 18... Rd7 {[%clk 0:01:19.2]} 19. Rad1 {[%clk 0:02:12.1]} 19... Rad8
{[%clk 0:01:18.8]} 20. f3 {[%clk 0:02:05.6]} 20... Nh5 {[%clk 0:01:14.3]} 21.
Nf1 {[%clk 0:02:05.1]} 21... Qe6 {[%clk 0:01:07.9]} 22. Nb2 {[%clk 0:01:47.2]}
22... f5 {[%clk 0:01:00.9]} 23. Rxd7 {[%clk 0:01:46.2]} 23... Rxd7 {[%clk
0:01:00.7]} 24. exf5 {[%clk 0:01:41.1]} 24... gxf5 {[%clk 0:01:01.6]} 25. g4
{[%clk 0:01:41.5]} 25... fxg4 {[%clk 0:00:52.7]} 26. hxg4 {[%clk 0:01:42.2]}
26... Nf6 {[%clk 0:00:47.9]} 27. Ng3 {[%clk 0:01:41.8]} 27... e4 {[%clk
0:00:37.5]} 28. Bc1 {[%clk 0:00:52.5]} 28... Ng6 {[%clk 0:00:11.5]} 29. Nf5
{[%clk 0:00:49.1]} 29... Qf7 {[%clk 0:00:09]} 30. Bxh6 {[%clk 0:00:45.3]} 30...
Bxh6 {[%clk 0:00:09.9]} 31. Nxh6+ {[%clk 0:00:44.8]} 31... Kg7 {[%clk
0:00:07.9]} 32. Nxf7 {[%clk 0:00:44.9]} 32... Rxf7 {[%clk 0:00:08.8]} 33. fxe4
{[%clk 0:00:42]} 33... Nxg4 {[%clk 0:00:09]} 34. Rf1 {[%clk 0:00:40.1]} 34...
Rxf1+ {[%clk 0:00:07.8]} 35. Bxf1 {[%clk 0:00:41]} 35... N6e5 {[%clk 0:00:07.7]}
36. Bg2 {[%clk 0:00:37.6]} 36... Kf6 {[%clk 0:00:06.9]} 37. Qd1 {[%clk
0:00:36.1]} 37... Kg5 {[%clk 0:00:06.2]} 38. Qd8+ {[%clk 0:00:35.5]} 38... Kf4
{[%clk 0:00:06.3]} 39. Qd2+ {[%clk 0:00:32.4]} 39... Kg3 {[%clk 0:00:05.7]} 40.
Qe1+ {[%clk 0:00:30.9]} 40... Kf4 {[%clk 0:00:06]} 41. Nd3+ {[%clk 0:00:27.1]}
41... Nxd3 {[%clk 0:00:04.9]} 42. Qd2+ {[%clk 0:00:27.6]} 42... Ke5 {[%clk
0:00:02.1]} 43. Qxd3 {[%clk 0:00:27.6]} 43... Bc6 {[%clk 0:00:02.7]} 44. Qg3+
{[%clk 0:00:27.4]} 1-0

[Event "Early-Titled-Tuesday-Blitz-February-06-2024"]
[Site "Chess.com"]
[Date "2024.02.06"]
[Round "8"]
[White "ChessSwole"]
[Black "secrethawk1"]
[Result "1-0"]
[WhiteElo "2680"]
[BlackElo "2506"]
[TimeControl "180+1"]
[EndTime "9:28:27 PST"]
[Termination "ChessSwole won on time"]

1. e4 {[%clk 0:03:00.9]} 1... c6 {[%clk 0:02:58.4]} 2. d4 {[%clk 0:03:00.8]}
2... d5 {[%clk 0:02:59.3]} 3. e5 {[%clk 0:03:01.3]} 3... Bf5 {[%clk 0:02:58.9]}
4. h4 {[%clk 0:03:01.5]} 4... h5 {[%clk 0:02:58.6]} 5. Bd3 {[%clk 0:03:01.5]}
5... Bxd3 {[%clk 0:02:58.4]} 6. Qxd3 {[%clk 0:03:02.4]} 6... e6 {[%clk
0:02:58.3]} 7. Bg5 {[%clk 0:03:02]} 7... Be7 {[%clk 0:02:57.5]} 8. Nf3 {[%clk
0:03:02]} 8... Nh6 {[%clk 0:02:56.7]} 9. Nc3 {[%clk 0:03:01.1]} 9... Nf5 {[%clk
0:02:56.4]} 10. g3 {[%clk 0:02:57.6]} 10... O-O {[%clk 0:02:52.4]} 11. O-O
{[%clk 0:02:53.5]} 11... Nd7 {[%clk 0:02:48.2]} 12. Ne2 {[%clk 0:02:52.1]} 12...
c5 {[%clk 0:02:47.2]} 13. c4 {[%clk 0:02:47]} 13... dxc4 {[%clk 0:02:39.4]} 14.
Qxc4 {[%clk 0:02:47.9]} 14... Bxg5 {[%clk 0:02:33.6]} 15. hxg5 {[%clk
0:02:37.2]} 15... cxd4 {[%clk 0:02:32.2]} 16. g6 {[%clk 0:02:35.2]} 16... Qe7
{[%clk 0:02:21.6]} 17. gxf7+ {[%clk 0:02:34.5]} 17... Qxf7 {[%clk 0:02:17.3]}
18. Nf4 {[%clk 0:02:26.9]} 18... Rac8 {[%clk 0:02:00.5]} 19. Qb5 {[%clk
0:02:24.5]} 19... Nc5 {[%clk 0:01:53.8]} 20. b4 {[%clk 0:02:18.9]} 20... Ne4
{[%clk 0:01:51.9]} 21. Qd3 {[%clk 0:02:14.3]} 21... g5 {[%clk 0:01:18.9]} 22.
Nxe6 {[%clk 0:01:53.6]} 22... Qxe6 {[%clk 0:00:44.6]} 23. Qxe4 {[%clk
0:01:52.9]} 23... g4 {[%clk 0:00:22.6]} 24. Nxd4 {[%clk 0:01:52.7]} 24... Qc4
{[%clk 0:00:22.1]} 25. Rad1 {[%clk 0:01:49.6]} 25... Rcd8 {[%clk 0:00:20.5]} 26.
Qc2 {[%clk 0:01:33]} 26... Rxd4 {[%clk 0:00:16.8]} 27. Qa4 {[%clk 0:01:26.4]}
27... Qxb4 {[%clk 0:00:12.7]} 28. Qxa7 {[%clk 0:01:24]} 28... Re8 {[%clk
0:00:06.8]} 29. Rb1 {[%clk 0:01:23.5]} 29... Qa4 {[%clk 0:00:04.1]} 30. Qxb7
{[%clk 0:01:22.3]} 30... Rxe5 {[%clk 0:00:03.2]} 31. Qc8+ {[%clk 0:01:22.4]}
31... Kg7 {[%clk 0:00:02.2]} 32. Rb7+ {[%clk 0:01:16.6]} 32... Ne7 {[%clk
0:00:02.3]} 33. Qc7 {[%clk 0:01:03.4]} 33... Rde4 {[%clk 0:00:02.4]} 34. Qd8
{[%clk 0:00:57.7]} 34... Re1 {[%clk 0:00:02.3]} 35. Rb8 {[%clk 0:00:45.3]} 35...
Rxf1+ {[%clk 0:00:01.9]} 36. Kxf1 {[%clk 0:00:45.8]} 36... Qc4+ {[%clk 0:00:02]}
37. Kg1 {[%clk 0:00:40.5]} 37... Ng6 {[%clk 0:00:01.8]} 38. Rb7+ {[%clk
0:00:38.3]} 38... Kh6 {[%clk 0:00:02]} 39. Qd2+ {[%clk 0:00:37.8]} 39... Nf4
{[%clk 0:00:01.3]} 40. gxf4 {[%clk 0:00:31.2]} 40... Qd5 {[%clk 0:00:01.7]} 41.
Rb6+ {[%clk 0:00:28.2]} 41... Kg7 {[%clk 0:00:01.4]} 42. Qc3 {[%clk 0:00:23.1]}
42... Qd1+ {[%clk 0:00:01.5]} 43. Kh2 {[%clk 0:00:23.4]} 1-0